bitfinex-derivatives/quotes_SOLF0:USTF0_20260211
["timestamp","ask_amount","ask_price","bid_price","bid_amount"]
[1770776463717,3.83415566,84.179,84.133,14.42329567]
[1770776464617,3.83415566,84.179,84.136,10.7038]
[1770776464827,3.83415566,84.179,84.137,3.71909567]
[1770776465224,3.83415566,84.179,84.139,10.7034]
[1770776469229,7.0,84.18,84.151,3.71909567]
[1770776469538,2.89797986,84.21,84.125,10.92519247]
[1770776469539,3.83415566,84.204,84.16,6.61707553]
[1770776469727,3.83415566,84.204,84.161,3.71909567]
[1770776472834,2.89797986,84.19,84.144,3.71909567]
[1770776473138,3.83415566,84.169,84.116,3.71909567]
[1770776473337,3.83415566,84.169,84.12,2.89797986]
[1770776473638,3.83415566,84.169,84.12,6.61707553]
[1770776473830,3.83415566,84.169,84.121,3.71909567]
[1770776475842,3.83415566,84.165,84.121,3.71909567]
[1770776476742,3.83415566,84.165,84.127,10.705]
[1770776476936,3.83415566,84.178,84.131,3.71909567]
[1770776477838,3.83415566,84.178,84.131,14.42349567]
[1770776478344,3.83415566,84.169,84.122,10.7056]
[1770776479536,3.83415566,84.166,84.122,10.7056]
[1770776479734,3.83415566,84.159,84.11,13.59951437]
[1770776480044,3.83415566,84.159,84.111,3.71909567]
[1770776481746,3.83415566,84.159,84.115,3.90140119]
[1770776482141,10.6993,84.173,84.13,2.89241437]
[1770776482346,10.6993,84.173,84.131,3.90140119]
[1770776482745,2.89241437,84.18,84.132,3.90140119]
[1770776482943,10.698,84.183,84.132,3.90140119]
[1770776483745,10.698,84.183,84.134,3.77498001]
[1770776484148,14.61116292,84.183,84.134,3.77498001]
[1770776484350,3.91316292,84.182,84.134,3.77498001]
[1770776484944,3.91316292,84.178,84.134,3.77498001]
[1770776485657,3.91316292,84.178,84.124,10.7053]
[1770776485658,3.91316292,84.169,84.124,10.7053]
[1770776485848,144.02,84.203,84.141,3.77498001]
[1770776485849,3.91316292,84.199,84.141,3.77498001]
[1770776486055,3.91316292,84.212,84.171,3.77498001]
[1770776487651,3.91316292,84.212,84.172,10.6992]
[1770776487845,3.91316292,84.212,84.171,3.77498001]
[1770776488146,3.91316292,84.209,84.16,2.89241437]
[1770776488752,3.91316292,84.209,84.161,10.7006]
[1770776492650,2.89241437,84.2,84.157,3.77498001]
[1770776492951,3.91316292,84.199,84.157,3.77498001]
[1770776494444,3.91316292,84.199,84.142,10.90244186]
[1770776494643,0.26505673,84.159,84.104,3.96897783]
[1770776494843,3.1574711,84.15,84.104,3.96897783]
[1770776495048,3.1574711,84.15,84.105,14.67667783]
[1770776495250,3.1574711,84.15,84.106,3.96897783]
[1770776495651,0.26505673,84.15,84.106,3.96897783]
[1770776499258,10.7011,84.158,84.106,3.96897783]
[1770776499850,2.89241437,84.18,84.121,4.09795717]
[1770776500749,10.6987,84.177,84.125,4.09298959]
[1770776501246,94.84,84.187,84.131,4.09298959]
[1770776501247,10.6975,84.187,84.131,4.09298959]
[1770776501450,10.6975,84.187,84.088,21.93612722]
[1770776501451,2.89241437,84.21,84.151,4.09298959]
[1770776502257,2.89241437,84.21,84.161,4.09298959]
[1770776502446,10.6958,84.2,84.161,4.09298959]
[1770776505161,0.04794287,84.191,84.127,4.07753477]
[1770776506765,10.6983,84.18,84.129,4.06369593]
[1770776509572,10.6983,84.18,84.131,10.7044]
[1770776509771,10.6983,84.18,84.132,4.06513518]
[1770776510072,10.76495706,84.18,84.132,4.06513518]
[1770776514175,0.02072373,84.175,84.132,4.06513518]
[1770776515675,0.02072373,84.175,84.134,4.08793981]
[1770776522184,10.6977,84.185,84.134,4.08793981]
[1770776522773,10.6986,84.178,84.134,4.08793981]
[1770776524881,2.89228717,84.18,84.137,10.7037]
[1770776525083,2.89228717,84.2,84.151,4.12136784]
[1770776526788,10.6965,84.194,84.151,4.12136784]
[1770776530193,2.89228717,84.19,84.144,10.7028]
[1770776530390,2.89228717,84.19,84.145,4.12708016]
[1770776530892,10.6965,84.194,84.145,4.12708016]
[1770776533392,2.89228717,84.19,84.145,4.12708016]
[1770776533597,2.89228717,84.19,84.136,10.7039]
[1770776533793,10.6982,84.181,84.133,4.12010981]
[1770776533988,2.89228717,84.18,84.133,4.12010981]
[1770776535396,2.89228717,84.19,84.133,4.12010981]
[1770776535693,10.6985,84.179,84.133,4.12010981]
[1770776535894,10.6985,84.179,84.135,4.12003018]
[1770776536788,10.6985,84.179,84.136,14.82364893]
[1770776537790,10.6985,84.179,84.137,4.11984893]
[1770776541890,10.6961,84.197,84.152,4.09510939]
[1770776542103,2.89229502,84.2,84.152,4.09510939]
[1770776543201,2.89229502,84.2,84.113,21.93612722]
[1770776543202,2.89229502,84.17,84.125,4.09516281]
[1770776544097,10.7005,84.163,84.125,4.09516281]
[1770776545004,2.89229502,84.18,84.131,4.10675025]
[1770776546703,2.89229502,84.18,84.133,10.7042]
[1770776547002,2.89229502,84.18,84.134,4.08385784]
[1770776547398,10.6982,84.181,84.134,4.08385784]
[1770776547595,10.73309222,84.181,84.134,4.08385784]
[1770776548611,0.03360587,84.18,84.134,4.08385784]
[1770776549395,0.03360587,84.18,84.135,10.7039]
[1770776549601,0.03360587,84.18,84.136,4.08450102]
[1770776549993,10.6988,84.176,84.136,4.08450102]
[1770776550598,0.0404706,84.199,84.143,4.08106865]
[1770776550798,2.89229502,84.2,84.151,4.08106865]
[1770776550999,0.0404706,84.199,84.151,4.08106865]
[1770776552306,2.89229502,84.19,84.151,4.08106865]
[1770776552909,2.91940489,84.19,84.151,4.08106865]
[1770776554008,0.02710987,84.19,84.151,4.08106865]
[1770776554208,10.6955,84.203,84.156,4.08774902]
[1770776555704,10.6955,84.203,84.159,4.08549402]
[1770776557013,10.6943,84.212,84.171,4.0909136]
[1770776557316,10.6943,84.212,84.136,21.93612722]
[1770776557317,2.89229502,84.23,84.181,4.0909136]
[1770776557709,0.0207807,84.229,84.181,4.0909136]
[1770776558719,10.6923,84.228,84.184,4.09733831]
[1770776560209,2.89229502,84.22,84.184,4.09733831]
[1770776561613,10.6923,84.228,84.184,4.09733831]
[1770776562211,2.89229502,84.22,84.184,4.09733831]
[1770776562416,10.6923,84.228,84.184,4.09733831]
[1770776566330,290.11637199,84.233,84.184,4.09733831]
[1770776566828,2.89229502,84.23,84.184,4.09733831]
[1770776567824,10.6921,84.229,84.184,4.09733831]
[1770776568428,0.02594733,84.224,84.184,4.09733831]
[1770776568831,2.89229502,84.23,84.184,4.09733831]
[1770776569628,2.91824235,84.23,84.184,4.09733831]
[1770776569829,10.71874733,84.223,84.184,4.09733831]
[1770776571531,10.6928,84.223,84.191,4.1007031]
[1770776571722,10.6928,84.223,84.19,2.89229502]
[1770776571723,2.89229502,84.25,84.201,4.1007031]
[1770776572125,147.84,84.249,84.201,4.1007031]
[1770776572726,10.6911,84.237,84.201,4.1007031]
[1770776573123,11.07093259,84.287,84.211,4.09067738]
[1770776573327,10.6879,84.262,84.211,4.09067738]
[1770776573538,2.89229502,84.26,84.211,4.09067738]
[1770776574124,148.04,84.261,84.211,4.09067738]
[1770776574327,2.89229502,84.27,84.221,4.09067738]
[1770776574629,148.32,84.269,84.221,4.09067738]
[1770776575729,10.6873,84.267,84.221,4.09067738]
[1770776578337,148.32,84.269,84.223,4.10867268]
[1770776579840,148.32,84.269,84.225,10.6925]
[1770776580833,148.32,84.269,84.226,4.09922659]
[1770776581040,2.89229502,84.29,84.243,14.78942659]
[1770776581237,2.89229502,84.29,84.243,4.09922659]
[1770776581835,10.6845,84.289,84.243,4.09922659]
[1770776582442,0.03688326,84.279,84.231,4.09922659]
[1770776583341,0.03688326,84.279,84.232,10.6917]
[1770776583536,0.03688326,84.279,84.233,4.08036023]
[1770776587036,0.03688326,84.279,84.237,4.09604286]
[1770776587238,10.6846,84.288,84.237,4.09604286]
[1770776588045,10.6846,84.288,84.23,2.89229502]
[1770776588046,2.89229502,84.28,84.239,4.09604286]
[1770776588433,10.6846,84.288,84.239,4.09604286]
[1770776590740,10.71905573,84.288,84.239,4.09604286]
[1770776591039,10.685,84.285,84.239,4.09604286]
[1770776592244,36.77939029,84.402,84.205,94.74]
[1770776592245,0.03445573,84.324,84.271,4.08157399]
[1770776592542,2.89229502,84.31,84.271,4.08157399]
[1770776592734,21.3476,84.374,84.28,2.89229502]
[1770776592735,2.89229502,84.33,84.28,2.89229502]
[1770776592939,2.93360687,84.33,84.281,4.07814593]
[1770776593144,0.04131185,84.33,84.281,4.07814593]
[1770776593346,0.04131185,84.329,84.281,4.07814593]
[1770776593541,10.6782,84.339,84.281,4.07814593]
[1770776593738,2.89229502,84.34,84.291,4.07814593]
[1770776594139,0.04131185,84.347,84.301,4.07814593]
[1770776594844,0.06364806,84.329,84.284,4.06697783]
[1770776595337,2.89229502,84.34,84.294,4.06697783]
[1770776595744,2.89229502,84.33,84.294,4.06697783]
[1770776596138,10.6794,84.329,84.294,4.06697783]
[1770776597042,2.89229502,84.32,84.279,4.12428196]
[1770776597437,2.89229502,84.31,84.263,4.12428196]
[1770776598645,2.89229502,84.31,84.265,4.1117137]
[1770776598847,2.88236368,84.32,84.271,4.1117137]
[1770776599643,10.6798,84.326,84.271,4.1117137]
[1770776599844,10.6798,84.326,84.273,4.1117137]
[1770776600546,2.88236368,84.32,84.273,4.1117137]
[1770776600747,2.88236368,84.31,84.273,4.1117137]
[1770776601144,2.88236368,84.33,84.275,4.09442478]
[1770776601348,2.88236368,84.33,84.281,4.09442478]
[1770776601538,94.7,84.355,84.291,4.09442478]
[1770776601539,2.88236368,84.34,84.291,4.09442478]
[1770776602142,2.88236368,84.34,84.292,10.684]
[1770776602356,10.6773,84.346,84.293,4.09442478]
[1770776602548,340.9683,84.409,84.233,166.3128]
[1770776602549,478.40563259,84.425,84.321,4.09341968]
[1770776602851,2.88236368,84.36,84.321,4.09341968]
[1770776603152,2.88236368,84.36,84.263,21.3753]
[1770776603153,2.88236368,84.35,84.301,4.09341968]
[1770776604041,2.88236368,84.34,84.301,4.09341968]
[1770776604451,0.17949698,84.359,84.301,4.09341968]
[1770776604649,2.88236368,84.36,84.311,4.0085638]
[1770776605451,2.88236368,84.36,84.313,4.0085638]
[1770776605949,0.17949698,84.359,84.313,4.0085638]
[1770776606951,2.88236368,84.35,84.313,4.0085638]
[1770776608347,0.17949698,84.359,84.313,4.0085638]
[1770776608554,0.17949698,84.359,84.3,2.88236368]
[1770776608555,2.88236368,84.37,84.321,4.00005131]
[1770776608952,0.19652194,84.369,84.321,4.00005131]
[1770776609154,2.88236368,84.36,84.321,4.00005131]
[1770776609456,0.19652194,84.369,84.321,4.00005131]
[1770776610356,10.87082194,84.369,84.321,4.00005131]
[1770776611257,10.87082194,84.369,84.31,2.88236368]
[1770776611258,0.19652194,84.369,84.323,4.0053891]
[1770776611557,13.05724063,84.378,84.33,2.88236368]
[1770776611858,2.38404063,84.378,84.331,4.0053891]
[1770776612860,2.38404063,84.378,84.335,4.0011268]
[1770776613460,2.5784116,84.378,84.335,4.0011268]
[1770776615460,2.88236368,84.37,84.335,4.0011268]
[1770776616748,2.88236368,84.36,84.32,4.05099121]
[1770776616953,0.09464215,84.359,84.308,4.05099121]
[1770776617856,0.09464215,84.359,84.312,4.05099121]
[1770776618061,2.88236368,84.37,84.321,4.05099121]
[1770776618457,0.09464215,84.373,84.321,4.05099121]
[1770776618458,2.88236368,84.36,84.321,4.05099121]
[1770776618763,2.88236368,84.36,84.301,4.05846668]
[1770776618764,0.0796912,84.359,84.301,4.05846668]
[1770776619058,10.6757,84.358,84.304,4.05846668]
[1770776619258,2.88236368,84.36,84.311,4.05846668]
[1770776619461,2.88236368,84.37,84.311,4.05846668]
[1770776620763,2.88236368,84.36,84.314,4.03880795]
[1770776622259,10.6756,84.359,84.314,4.03880795]
[1770776622458,0.11878526,84.377,84.314,4.03880795]
[1770776622663,2.88236368,84.37,84.314,4.03880795]
[1770776623765,10.6745,84.368,84.316,4.03891966]
[1770776624864,10.6745,84.368,84.319,4.05424273]
[1770776625567,10.6745,84.368,84.32,2.88236368]
[1770776625770,10.6745,84.368,84.321,4.05424273]
[1770776626670,10.675,84.364,84.321,4.05424273]
[1770776627170,2.38404063,84.378,84.301,4.05713836]
[1770776627171,10.75924786,84.349,84.301,4.05713836]
[1770776627467,0.08234786,84.348,84.301,4.05713836]
[1770776628061,10.75984786,84.344,84.301,4.05713836]
[1770776628470,10.75984786,84.344,84.267,47.0]
[1770776628471,0.0434193,84.339,84.288,4.07660264]
[1770776628872,10.6783,84.338,84.291,10.6842]
[1770776629067,2.88236368,84.31,84.262,4.07660264]
[1770776629362,2.88236368,84.31,84.196,28.93408186]
[1770776629363,10.6797,84.327,84.281,4.07660264]
[1770776629570,2.88236368,84.32,84.281,4.07660264]
[1770776629759,2.88236368,84.32,84.226,112.48]
[1770776629760,0.0434193,84.319,84.261,4.07660264]
[1770776629965,2.92578298,84.31,84.261,4.07660264]
[1770776630362,2.92698372,84.31,84.261,4.07660264]
[1770776630770,10.6819,84.309,84.261,14.76450264]
[1770776630969,10.6819,84.309,84.262,4.09867121]
[1770776631966,2.88356442,84.3,84.262,4.09867121]
[1770776632170,2.88356442,84.3,84.252,10.689]
[1770776632467,0.03296013,84.299,84.252,10.689]
[1770776635068,10.6837,84.295,84.248,4.09867121]
[1770776635372,2.88356442,84.28,84.248,4.09867121]
[1770776635569,2.93374581,84.28,84.233,4.07662382]
[1770776637064,0.06553364,84.269,84.219,4.06894769]
[1770776637266,2.88356442,84.26,84.219,4.06894769]
[1770776638068,94.66,84.287,84.187,154.6]
[1770776638069,2.88356442,84.25,84.187,154.6]
[1770776638270,2.88356442,84.24,84.187,154.6]
[1770776638573,2.88356442,84.24,84.18,2.88356442]
[1770776638971,3.79640597,84.238,84.18,2.88356442]
[1770776639272,3.79640597,84.229,84.17,2.88356442]
[1770776639473,2.88356442,84.22,84.16,2.88356442]
[1770776639679,3.79640597,84.229,84.17,2.88356442]
[1770776640078,3.79640597,84.229,84.171,3.75004867]
[1770776640277,3.79640597,84.229,84.181,3.75004867]
[1770776640473,10.691,84.238,84.181,3.75004867]
[1770776641678,21.3697,84.286,84.162,94.68]
[1770776641679,2.88356442,84.22,84.17,10.6995]
[1770776641884,2.88356442,84.22,84.171,3.75004867]
[1770776643781,3.79640597,84.228,84.181,3.75004867]
[1770776643968,2.88356442,84.23,84.181,3.75004867]
[1770776644169,13.57426442,84.24,84.191,3.75004867]
[1770776644382,2.88356442,84.23,84.191,3.75004867]
[1770776644575,6.67997039,84.23,84.171,3.75004867]
[1770776644975,6.67997039,84.23,84.18,2.88356442]
[1770776645173,6.67997039,84.23,84.18,6.63361309]
[1770776645579,6.67997039,84.23,84.181,3.75004867]
[1770776647578,2.88356442,84.24,84.191,3.75004867]
[1770776647989,6.67997039,84.24,84.191,3.75004867]
[1770776648284,10.6909,84.239,84.191,3.75004867]
[1770776648882,3.79640597,84.235,84.191,3.75004867]
[1770776649185,2.88356442,84.23,84.191,3.75004867]
[1770776649385,6.67997039,84.23,84.191,3.75004867]
[1770776649583,3.79640597,84.229,84.18,2.88356442]
[1770776649890,3.79640597,84.226,84.178,3.75004867]
[1770776650084,3.79640597,84.209,84.164,3.75004867]
[1770776654289,3.79640597,84.199,84.152,10.7018]
[1770776654686,3.79640597,84.199,84.151,3.75004867]
[1770776654687,3.79640597,84.197,84.151,3.75004867]
[1770776654884,3.79640597,84.189,84.151,3.75004867]
[1770776655087,3.79640597,84.189,84.142,10.7031]
[1770776655289,3.79640597,84.189,84.15,2.88356442]
[1770776655479,3.79640597,84.189,84.144,10.7027]
[1770776656185,3.79640597,84.189,84.143,3.75004867]
[1770776656395,10.6975,84.186,84.143,3.75004867]
[1770776656591,3.79640597,84.185,84.143,3.75004867]
[1770776656781,3.79640597,84.199,84.144,3.75004867]
[1770776657686,10.696,84.198,84.145,10.7026]
[1770776657992,10.696,84.198,84.151,3.75004867]
[1770776659690,14.49240597,84.198,84.151,3.75004867]
[1770776660091,3.70831251,84.195,84.151,3.75004867]
[1770776660289,2.89102283,84.19,84.151,3.75004867]
[1770776660488,3.70831251,84.189,84.151,3.75004867]
[1770776660795,10.6976,84.186,84.151,3.75004867]
[1770776661386,3.70831251,84.185,84.14,2.89102283]
[1770776661588,3.70831251,84.185,84.14,6.74187983]
[1770776661786,2.89102283,84.18,84.14,3.850857]
[1770776663499,35.67,84.236,84.141,3.850857]
[1770776663500,2.89102283,84.19,84.141,3.850857]
[1770776664393,6.69069905,84.19,84.141,3.850857]
[1770776664697,14.49687622,84.189,84.141,3.850857]
[1770776665191,3.79967622,84.179,84.128,4.0217804]
[1770776665386,35.67,84.233,84.13,2.89102283]
[1770776665387,10.6979,84.183,84.13,2.89102283]
[1770776665586,3.79967622,84.192,84.145,4.0217804]
[1770776665798,2.89102283,84.2,84.151,4.0217804]
[1770776665992,6.69069905,84.2,84.151,4.0217804]
[1770776666399,3.79967622,84.199,84.151,4.0217804]
[1770776666800,14.49557622,84.199,84.151,4.0217804]
[1770776667201,3.79967622,84.198,84.151,4.0217804]
[1770776668603,10.6964,84.195,84.151,4.0217804]
[1770776668798,6.69069905,84.21,84.161,4.0217804]
[1770776669303,2.89102283,84.22,84.172,4.0217804]
[1770776670794,10.6935,84.218,84.172,4.0217804]
[1770776672800,3.79967622,84.236,84.191,4.0217804]
[1770776673705,10.6914,84.235,84.191,4.0217804]
[1770776674206,3.79967622,84.234,84.191,4.0217804]
[1770776674409,3.79967622,84.219,84.171,4.0217804]
[1770776675703,3.79967622,84.214,84.171,4.0217804]
[1770776677409,10.695,84.206,84.164,4.0217804]
[1770776677804,3.79967622,84.209,84.164,14.7220804]
[1770776678004,3.79967622,84.209,84.164,4.0217804]
[1770776678813,14.49437622,84.209,84.164,4.0217804]
[1770776679204,3.79967622,84.208,84.164,4.0217804]
[1770776679908,3.79967622,84.205,84.151,4.0217804]
[1770776681715,3.79967622,84.2,84.154,10.7015]
[1770776682321,3.79967622,84.2,84.154,14.7232804]
[1770776682817,3.79967622,84.2,84.155,4.0217804]
[1770776684820,3.79967622,84.196,84.155,4.0217804]
[1770776685021,3.79967622,84.196,84.126,4.0217804]
[1770776685220,3.79967622,84.196,84.107,47.0]
[1770776685221,3.79967622,84.179,84.131,4.0217804]
[1770776685421,3.79967622,84.179,84.132,4.0217804]
[1770776686427,3.79967622,84.179,84.135,4.0217804]
[1770776687826,3.79967622,84.179,84.14,4.0217804]
[1770776688024,10.6971,84.19,84.141,4.0217804]
[1770776688224,10.6973,84.188,84.141,4.0217804]
[1770776688422,3.79967622,84.187,84.141,4.0217804]
[1770776689829,10.698,84.183,84.141,4.0217804]
[1770776693033,2.89102283,84.18,84.132,10.7043]
[1770776693230,3.70643146,84.179,84.132,10.7043]
[1770776693531,3.70643146,84.179,84.132,14.61592902]
[1770776693732,3.70643146,84.179,84.133,3.91162902]
[1770776695032,3.70643146,84.179,84.137,3.91162902]
[1770776696935,3.70643146,84.189,84.14,6.80265185]
[1770776697133,3.70643146,84.189,84.141,3.91162902]
[1770776697434,2.89102283,84.18,84.141,3.91162902]
[1770776697640,3.70643146,84.189,84.141,3.91162902]
[1770776698740,10.6981,84.182,84.141,3.91162902]
[1770776700837,3.70643146,84.189,84.141,3.91162902]
[1770776701843,3.70643146,84.189,84.098,21.4173]
[1770776701844,3.70643146,84.159,84.111,3.91162902]
[1770776702033,3.70643146,84.149,84.111,3.91162902]
[1770776702232,3.70643146,84.149,84.091,3.91162902]
[1770776702742,3.70643146,84.137,84.091,3.91162902]
[1770776702925,32.46783259,84.179,84.075,14.54974404]
[1770776702926,3.70643146,84.129,84.075,3.91162902]
[1770776703131,3.70643146,84.129,84.028,28.93408186]
[1770776703132,3.70643146,84.129,84.081,3.91162902]
[1770776703533,3.70643146,84.159,84.101,3.91162902]
[1770776704333,3.70643146,84.159,84.111,3.91162902]
[1770776704539,14.40743146,84.159,84.111,3.91162902]
[1770776705835,14.40743146,84.159,84.113,3.91162902]
[1770776707932,3.70643146,84.158,84.113,3.91162902]
[1770776712645,3.70643146,84.169,84.126,3.91162902]
[1770776713846,3.70643146,84.167,84.126,3.91162902]
[1770776714849,3.70643146,84.165,84.126,3.91162902]
[1770776716147,3.70643146,84.165,84.118,10.7061]
[1770776717251,3.70643146,84.159,84.118,10.7061]
[1770776718457,3.70643146,84.149,84.103,3.91162902]
[1770776719551,3.70643146,84.146,84.103,3.91162902]
[1770776720251,3.87274312,84.139,84.095,10.7091]
[1770776720445,3.87274312,84.139,84.093,4.09156233]
[1770776720949,10.7046,84.131,84.093,4.09156233]
[1770776721149,3.87274312,84.139,84.093,4.09156233]
[1770776721957,3.87274312,84.139,84.101,4.09156233]
[1770776722255,10.7028,84.145,84.101,4.09156233]
[1770776723958,10.7028,84.145,84.102,4.09813429]
[1770776724454,3.9805542,84.149,84.103,10.708]
[1770776724654,3.9805542,84.149,84.103,14.80613429]
[1770776724855,3.9805542,84.149,84.104,4.09813429]
[1770776725251,10.7014,84.156,84.11,2.8954965]
[1770776725454,10.7014,84.156,84.111,4.09813429]
[1770776726053,3.9805542,84.162,84.112,4.09813429]
[1770776727756,3.9805542,84.162,84.116,4.09813429]
[1770776728058,3.99996647,84.175,84.131,4.09813429]
[1770776728261,2.8954965,84.18,84.14,4.09813429]
[1770776728461,3.99996647,84.189,84.14,4.09813429]
[1770776728462,3.99996647,84.189,84.141,4.09813429]
[1770776729461,11.07093259,84.22,84.13,2.8954965]
[1770776729462,3.99996647,84.187,84.13,2.8954965]
[1770776729764,3.99996647,84.179,84.129,4.09813429]
[1770776730866,3.99996647,84.175,84.129,4.09813429]
[1770776732458,2.8954965,84.17,84.129,4.09813429]
[1770776732657,3.99996647,84.169,84.129,4.09813429]
[1770776733362,3.99996647,84.168,84.129,4.09813429]
[1770776736559,3.99996647,84.166,84.129,4.09813429]
[1770776738967,3.99996647,84.164,84.129,4.09813429]
[1770776753980,10.7006,84.162,84.129,4.09813429]
[1770776756181,14.78595714,84.162,84.129,4.09813429]
[1770776756576,4.08535714,84.161,84.129,4.09813429]
[1770776756883,4.08535714,84.159,84.118,3.77722675]
[1770776757474,4.08535714,84.159,84.119,10.7059]
[1770776757680,4.08535714,84.159,84.12,3.77722675]
[1770776759579,4.08535714,84.169,84.123,3.77722675]
[1770776760685,4.08535714,84.167,84.123,3.77722675]
[1770776761683,4.08535714,84.167,84.125,10.7052]
[1770776761985,4.08535714,84.167,84.12,2.8954965]
[1770776761986,4.08535714,84.167,84.126,3.77722675]
[1770776763688,10.7006,84.162,84.126,3.77722675]
[1770776763886,4.08535714,84.161,84.126,3.77722675]
[1770776769194,6.98085364,84.17,84.126,3.77722675]
[1770776769394,4.08535714,84.17,84.126,3.77722675]
[1770776770891,4.08535714,84.195,84.151,3.77722675]
[1770776772589,2.8954965,84.19,84.14,3.77722675]
[1770776772796,4.08535714,84.189,84.14,3.77722675]
[1770776773694,4.08535714,84.188,84.14,3.77722675]
[1770776774201,4.08535714,84.199,84.142,3.77722675]
[1770776774395,4.08535714,84.199,84.151,3.77722675]
[1770776775690,10.6946,84.209,84.161,3.77722675]
[1770776776294,4.08535714,84.21,84.161,3.77722675]
[1770776778103,4.08535714,84.209,84.161,3.77722675]
[1770776778791,10.6947,84.208,84.161,3.77722675]
[1770776781402,3.92909188,84.205,84.161,3.77722675]
[1770776781602,3.92909188,84.199,84.161,3.77722675]
[1770776784903,3.75957645,84.219,84.171,3.94274086]
[1770776785605,3.75957645,84.217,84.171,3.94274086]
[1770776792016,3.75957645,84.215,84.171,3.94274086]
[1770776792415,140.9,84.226,84.145,47.0]
[1770776792416,3.75957645,84.209,84.16,3.94274086]
[1770776792714,3.75957645,84.209,84.161,3.94274086]
[1770776793308,3.75957645,84.22,84.181,3.94274086]
[1770776793810,3.75957645,84.218,84.181,3.94274086]
[1770776799117,140.9,84.226,84.181,3.94274086]
[1770776799322,140.9,84.226,84.149,10.89118381]
[1770776799323,3.75957645,84.254,84.201,3.94274086]
[1770776799720,3.75957645,84.254,84.175,10.89118381]
[1770776799721,3.75957645,84.279,84.221,3.94274086]
[1770776799915,3.75957645,84.277,84.231,3.94274086]
[1770776800320,3.75957645,84.275,84.231,3.94274086]
[1770776810230,2.89040834,84.27,84.231,3.94274086]
[1770776810719,6.79254854,84.27,84.231,3.94274086]
[1770776810921,3.9021402,84.269,84.231,3.94274086]
[1770776812734,94.8,84.276,84.21,4.04892614]
[1770776812735,3.9021402,84.249,84.21,4.04892614]
[1770776813124,2.89040834,84.25,84.21,4.04892614]
[1770776813832,2.89040834,84.25,84.211,4.04892614]
[1770776814025,3.9021402,84.259,84.211,4.04892614]
[1770776815531,94.74,84.277,84.221,4.04892614]
[1770776815737,2.89040834,84.28,84.221,4.04892614]
[1770776815927,3.9021402,84.279,84.221,4.04892614]
[1770776816127,3.9021402,84.279,84.222,4.04892614]
[1770776816328,2.89040834,84.27,84.222,4.04892614]
[1770776816847,3.9021402,84.269,84.222,4.04892614]
[1770776818448,2.89040834,84.26,84.222,4.04892614]
[1770776818650,6.79254854,84.26,84.222,4.04892614]
[1770776818846,3.9021402,84.26,84.222,4.04892614]
[1770776819840,3.9021402,84.277,84.222,4.04892614]
[1770776820046,2.89040834,84.27,84.222,4.04892614]
[1770776820353,3.9021402,84.277,84.231,4.04892614]
[1770776820843,94.74,84.301,84.235,4.04892614]
[1770776820844,2.89040834,84.29,84.235,4.04892614]
[1770776821043,3.9021402,84.289,84.235,4.04892614]
[1770776821248,2.89040834,84.3,84.251,4.04892614]
[1770776822842,10.6833,84.299,84.251,4.04892614]
[1770776823243,3.9021402,84.303,84.251,4.04892614]
[1770776823447,13.57220834,84.31,84.254,4.04892614]
[1770776823646,2.89040834,84.31,84.261,4.04892614]
[1770776823847,3.9021402,84.316,84.261,4.04892614]
[1770776824250,3.9021402,84.328,84.271,4.04892614]
[1770776824650,2.89040834,84.32,84.271,4.04892614]
[1770776824953,3.9021402,84.319,84.271,4.04892614]
[1770776825355,3.9021402,84.335,84.281,4.04892614]
[1770776825555,6.79254854,84.33,84.281,4.04892614]
[1770776825851,3.9021402,84.319,84.269,4.04892614]
[1770776826456,3.9021402,84.319,84.271,4.04892614]
[1770776826954,10.681,84.316,84.271,4.04892614]
[1770776827254,10.681,84.316,84.27,2.89040834]
[1770776827255,3.9021402,84.299,84.258,4.04892614]
[1770776831356,3.9021402,84.279,84.233,4.04892614]
[1770776833962,3.9021402,84.275,84.233,4.04892614]
[1770776834849,3.9021402,84.273,84.233,4.04892614]
[1770776835155,3.9021402,84.273,84.208,10.6946]
[1770776835156,3.9021402,84.269,84.218,4.04892614]
[1770776835859,2.89040834,84.26,84.218,4.04892614]
[1770776836661,6.79254854,84.26,84.218,4.04892614]
[1770776837748,3.9021402,84.259,84.208,10.6946]
[1770776838058,2.89040834,84.25,84.206,4.04892614]
[1770776838457,3.9021402,84.249,84.206,4.04892614]
[1770776840452,2.89040834,84.25,84.206,4.04892614]
[1770776840652,3.70559357,84.259,84.21,2.89040834]
[1770776840959,3.70559357,84.259,84.211,3.98500624]
[1770776842658,10.6849,84.286,84.231,3.98500624]
[1770776842862,2.8855076,84.28,84.231,3.98500624]
[1770776843365,3.70559357,84.279,84.231,3.98500624]
[1770776843762,94.72,84.301,84.217,3.98371295]
[1770776843763,3.96304612,84.259,84.217,3.98371295]
[1770776845662,3.96304612,84.269,84.22,2.8855076]
[1770776845867,3.96304612,84.269,84.217,3.98371295]
[1770776846065,2.8855076,84.26,84.217,3.98371295]